bitfinex-derivatives/quotes_BNBF0:USTF0_20260114
["timestamp","ask_amount","ask_price","bid_price","bid_amount"]
[1768390991118,0.7735914,930.76,929.74,0.18696057]
[1768390991318,0.7735914,930.75,929.74,0.18696057]
[1768390991518,0.7735914,930.74,929.74,0.18696057]
[1768390991720,0.7735914,930.73,929.74,0.18696057]
[1768390991920,0.7735914,930.72,929.74,0.18696057]
[1768390992118,0.7735914,930.71,929.74,0.18696057]
[1768390992420,0.7735914,930.7,929.74,0.18696057]
[1768390992616,0.7735914,930.69,929.74,0.18696057]
[1768390992821,0.7735914,930.68,929.74,0.18696057]
[1768390993022,0.7735914,930.67,929.74,0.18696057]
[1768390993223,0.7735914,930.66,929.74,0.18696057]
[1768390993521,0.7735914,930.65,929.74,0.18696057]
[1768390993721,0.7735914,930.64,929.74,0.18696057]
[1768390993921,0.7735914,930.63,929.74,0.18696057]
[1768390994119,0.7735914,930.62,929.74,0.18696057]
[1768390994316,0.7735914,930.61,929.74,0.18696057]
[1768390994520,0.7735914,930.6,929.74,0.18696057]
[1768390994720,0.7735914,930.59,929.74,0.18696057]
[1768390994922,0.7735914,930.58,929.74,0.18696057]
[1768390995119,0.7735914,930.57,929.74,0.18696057]
[1768390995318,0.7735914,930.56,929.74,0.18696057]
[1768390995520,0.7735914,930.55,929.74,0.18696057]
[1768390995725,0.7735914,930.54,929.74,0.18696057]
[1768390996020,0.7735914,930.53,929.74,0.18696057]
[1768390996224,0.7735914,930.52,929.74,0.18696057]
[1768390996427,0.7735914,930.51,929.74,0.18696057]
[1768390996722,0.7735914,930.5,929.74,0.18696057]
[1768390996926,0.7735914,930.49,929.74,0.18696057]
[1768390997125,0.7735914,930.48,929.74,0.18696057]
[1768390997425,0.7735914,930.47,929.74,0.18696057]
[1768390997623,0.7735914,930.46,929.74,0.18696057]
[1768390997824,0.7735914,930.45,929.74,0.18696057]
[1768390998026,0.7735914,930.44,929.74,0.18696057]
[1768390998226,0.7735914,930.43,929.74,0.18696057]
[1768390998529,0.7735914,930.42,929.74,0.18696057]
[1768390998726,0.18699172,931.13,929.74,0.18696057]
[1768390998922,0.77384455,931.12,929.74,0.18696057]
[1768390999126,0.77384455,931.11,929.74,0.18696057]
[1768390999327,0.77384455,931.1,929.74,0.18696057]
[1768390999524,0.77384455,931.09,929.74,0.18696057]
[1768390999722,0.77384455,931.08,929.74,0.18696057]
[1768390999924,0.77384455,931.07,929.74,0.18696057]
[1768391000126,0.77384455,931.06,929.74,0.18696057]
[1768391000323,0.77384455,931.05,929.74,0.18696057]
[1768391000525,0.77384455,931.04,929.74,0.18696057]
[1768391000727,0.77384455,931.03,929.74,0.18696057]
[1768391000924,0.77384455,931.02,929.74,0.18696057]
[1768391001225,0.77384455,931.01,929.74,0.18696057]
[1768391001525,0.77384455,931.0,929.74,0.18696057]
[1768391001724,0.77384455,930.99,929.74,0.18696057]
[1768391001928,0.77384455,930.98,929.74,0.18696057]
[1768391002125,0.77384455,930.97,929.74,0.18696057]
[1768391002329,0.77384455,930.96,929.74,0.18696057]
[1768391002529,0.77384455,930.95,929.74,0.18696057]
[1768391002726,0.77384455,930.94,929.74,0.18696057]
[1768391003027,0.77384455,930.93,929.74,0.18696057]
[1768391003226,0.77384455,930.92,929.74,0.18696057]
[1768391003530,0.77384455,930.91,929.74,0.18696057]
[1768391003726,0.77384455,930.9,929.74,0.18696057]
[1768391003929,0.77384455,930.89,929.74,0.18696057]
[1768391004130,0.77384455,930.88,929.74,0.18696057]
[1768391004326,0.77384455,930.87,929.74,0.18696057]
[1768391004629,0.77384455,930.86,929.74,0.18696057]
[1768391004826,0.77384455,930.85,929.74,0.18696057]
[1768391005026,0.18699172,931.13,929.74,0.18696057]
[1768391005027,0.77384455,930.84,929.74,0.18696057]
[1768391005225,0.77384455,930.83,929.74,0.18696057]
[1768391005526,0.77384455,930.82,929.74,0.18696057]
[1768391005727,0.77384455,930.81,929.74,0.18696057]
[1768391005926,0.77384455,930.8,929.74,0.18696057]
[1768391006126,0.77384455,930.79,929.74,0.18696057]
[1768391006330,0.77384455,930.78,929.74,0.18696057]
[1768391006531,0.77384455,930.77,929.74,0.18696057]
[1768391006732,0.77384455,930.76,929.74,0.18696057]
[1768391006929,0.77384455,930.75,929.74,0.18696057]
[1768391007132,0.77384455,930.74,929.74,0.18696057]
[1768391007333,0.77384455,930.73,929.74,0.18696057]
[1768391007532,0.77384455,930.72,929.74,0.18696057]
[1768391007832,0.77384455,930.71,929.74,0.18696057]
[1768391008030,0.77384455,930.7,929.74,0.18696057]
[1768391008333,0.77384455,930.69,929.74,0.18696057]
[1768391008532,0.77384455,930.68,929.74,0.18696057]
[1768391008730,0.77384455,930.67,929.74,0.18696057]
[1768391008933,0.77384455,930.66,929.74,0.18696057]
[1768391009133,0.77384455,930.65,929.74,0.18696057]
[1768391009331,0.77384455,930.64,929.74,0.18696057]
[1768391009529,0.77384455,930.63,929.74,0.18696057]
[1768391009730,0.77384455,930.62,929.74,0.18696057]
[1768391009934,0.77384455,930.61,929.74,0.18696057]
[1768391010131,0.77384455,930.6,929.74,0.18696057]
[1768391010332,0.77384455,930.59,929.74,0.18696057]
[1768391010538,0.77384455,930.58,929.74,0.18696057]
[1768391010834,0.77384455,930.57,929.74,0.18696057]
[1768391011032,0.77384455,930.56,929.74,0.18696057]
[1768391011233,0.77384455,930.55,929.74,0.18696057]
[1768391011536,0.77384455,930.54,929.74,0.18696057]
[1768391011740,0.77384455,930.53,929.74,0.18696057]
[1768391012038,0.77384455,930.52,929.74,0.18696057]
[1768391012238,0.77384455,930.51,929.74,0.18696057]
[1768391012441,0.77384455,930.5,929.74,0.18696057]
[1768391012640,0.77384455,930.49,929.74,0.18696057]
[1768391012840,0.77384455,930.48,929.74,0.18696057]
[1768391013041,0.77384455,930.47,929.74,0.18696057]
[1768391013341,0.77384455,930.46,929.74,0.18696057]
[1768391013539,0.77384455,930.45,929.74,0.18696057]
[1768391013837,0.77384455,930.44,929.74,0.18696057]
[1768391014037,0.18699172,931.13,929.74,0.18696057]
[1768391014236,0.7742712,931.12,929.74,0.18696057]
[1768391014437,0.7742712,931.11,929.74,0.18696057]
[1768391014642,0.7742712,931.1,929.74,0.18696057]
[1768391014837,0.7742712,931.09,929.74,0.18696057]
[1768391015137,0.7742712,931.08,929.74,0.18696057]
[1768391015342,0.7742712,931.07,929.74,0.18696057]
[1768391015543,0.7742712,931.06,929.74,0.18696057]
[1768391015740,0.7742712,931.05,929.74,0.18696057]
[1768391015939,0.7742712,931.04,929.74,0.18696057]
[1768391016243,0.7742712,931.03,929.74,0.18696057]
[1768391016441,0.7742712,931.02,929.74,0.18696057]
[1768391016644,0.7742712,931.01,929.74,0.18696057]
[1768391016843,0.7742712,931.0,929.74,0.18696057]
[1768391017038,0.7742712,930.99,929.74,0.18696057]
[1768391017243,0.7742712,930.98,929.74,0.18696057]
[1768391017442,0.7742712,930.97,929.74,0.18696057]
[1768391017640,0.7742712,930.96,929.74,0.18696057]
[1768391017839,0.7742712,930.95,929.74,0.18696057]
[1768391018044,0.7742712,930.94,929.74,0.18696057]
[1768391018344,0.7742712,930.93,929.74,0.18696057]
[1768391018541,0.7742712,930.92,929.74,0.18696057]
[1768391018741,0.7742712,930.91,929.74,0.18696057]
[1768391019040,0.7742712,930.9,929.74,0.18696057]
[1768391019242,0.7742712,930.89,929.74,0.18696057]
[1768391019447,0.7742712,930.88,929.74,0.18696057]
[1768391019640,0.7742712,930.87,929.74,0.18696057]
[1768391019846,0.7742712,930.86,929.74,0.18696057]
[1768391020141,0.7742712,930.85,929.74,0.18696057]
[1768391020346,0.7742712,930.84,929.74,0.18696057]
[1768391020641,0.7742712,930.83,929.74,0.18696057]
[1768391020839,0.7742712,930.82,929.74,0.18696057]
[1768391021041,0.7742712,930.81,929.74,0.18696057]
[1768391021241,0.7742712,930.8,929.74,0.18696057]
[1768391021442,0.7742712,930.79,929.74,0.18696057]
[1768391021645,0.7742712,930.78,929.74,0.18696057]
[1768391021943,0.7742712,930.77,929.74,0.18696057]
[1768391022144,1.465,931.0,929.74,0.18696057]
[1768391022145,0.7742712,930.76,929.74,0.18696057]
[1768391022339,0.7742712,930.75,929.74,0.18696057]
[1768391022542,0.7742712,930.74,929.74,0.18696057]
[1768391022742,0.7742712,930.73,929.74,0.18696057]
[1768391022945,1.465,931.0,929.74,0.18696057]
[1768391022946,0.7742712,930.72,929.74,0.18696057]
[1768391023142,0.7742712,930.71,929.74,0.18696057]
[1768391023346,0.7742712,930.7,929.74,0.18696057]
[1768391023648,0.7742712,930.69,929.74,0.18696057]
[1768391023847,0.7742712,930.68,929.74,0.18696057]
[1768391024047,0.7742712,930.67,929.74,0.18696057]
[1768391024247,0.7742712,930.66,929.74,0.18696057]
[1768391024448,0.7742712,930.65,929.74,0.18696057]
[1768391024647,0.7742712,930.64,929.74,0.18696057]
[1768391024844,0.7742712,930.63,929.74,0.18696057]
[1768391025047,0.7742712,930.62,929.74,0.18696057]
[1768391025244,0.7742712,930.61,929.74,0.18696057]
[1768391025544,0.7742712,930.6,929.74,0.18696057]
[1768391025747,0.7742712,930.59,929.74,0.18696057]
[1768391026047,0.7742712,930.58,929.74,0.18696057]
[1768391026250,0.77437064,930.57,929.74,0.18696057]
[1768391026546,0.77437064,930.56,929.74,0.18696057]
[1768391026747,0.77437064,930.55,929.74,0.18696057]
[1768391026946,0.77437064,930.54,929.74,0.18696057]
[1768391027147,0.77437064,930.53,929.74,0.18696057]
[1768391027344,0.77437064,930.52,929.74,0.18696057]
[1768391027542,0.77437064,930.51,929.74,0.18696057]
[1768391027747,0.77437064,930.5,929.74,0.18696057]
[1768391028047,0.77437064,930.49,929.74,0.18696057]
[1768391028347,0.77437064,930.48,929.74,0.18696057]
[1768391028547,0.77437064,930.47,929.74,0.18696057]
[1768391028748,0.77437064,930.46,929.74,0.18696057]
[1768391028948,0.77437064,930.45,929.74,0.18696057]
[1768391029149,0.77437064,930.44,929.74,0.18696057]
[1768391029349,0.77437064,930.43,929.74,0.18696057]
[1768391029546,0.77437064,930.42,929.74,0.18696057]
[1768391029849,1.465,931.0,929.74,0.18696057]
[1768391030050,0.77438765,930.99,929.74,0.18696057]
[1768391030350,0.77438765,930.98,929.74,0.18696057]
[1768391030550,0.77438765,930.97,929.74,0.18696057]
[1768391030845,0.77438765,930.96,929.74,0.18696057]
[1768391031050,0.77438765,930.95,929.74,0.18696057]
[1768391031249,0.77438765,930.94,929.74,0.18696057]
[1768391031551,0.77438765,930.93,929.74,0.18696057]
[1768391031747,0.77438765,930.92,929.74,0.18696057]
[1768391031949,0.77438765,930.91,929.74,0.18696057]
[1768391032145,0.77438765,930.9,929.74,0.18696057]
[1768391032449,0.77438765,930.89,929.74,0.18696057]
[1768391032647,0.77438765,930.88,929.74,0.18696057]
[1768391032947,0.77438765,930.87,929.74,0.18696057]
[1768391033150,0.77438765,930.86,929.74,0.18696057]
[1768391033351,0.77438765,930.85,929.74,0.18696057]
[1768391033551,0.77438765,930.84,929.74,0.18696057]
[1768391033748,0.77438765,930.83,929.74,0.18696057]
[1768391034047,0.77438765,930.82,929.74,0.18696057]
[1768391034251,0.77438765,930.81,929.74,0.18696057]
[1768391034448,1.465,931.0,929.74,0.18696057]
[1768391034449,0.77438765,930.8,929.74,0.18696057]
[1768391034648,0.77438765,930.79,929.74,0.18696057]
[1768391034847,0.77438765,930.78,929.74,0.18696057]
[1768391035052,0.77438765,930.77,929.74,0.18696057]
[1768391035351,0.77438765,930.76,929.74,0.18696057]
[1768391035552,0.77438765,930.75,929.74,0.18696057]
[1768391035753,0.77438765,930.74,929.74,0.18696057]
[1768391035954,0.77438765,930.73,929.74,0.18696057]
[1768391036150,0.77438765,930.72,929.74,0.18696057]
[1768391036456,0.77438765,930.71,929.74,0.18696057]
[1768391036651,0.77438765,930.7,929.74,0.18696057]
[1768391036851,0.77438765,930.69,929.74,0.18696057]
[1768391037153,0.77438765,930.68,929.74,0.18696057]
[1768391037354,0.77438765,930.67,929.74,0.18696057]
[1768391037551,0.77438765,930.66,929.74,0.18696057]
[1768391037854,0.77438765,930.65,929.74,0.18696057]
[1768391038049,0.77438765,930.64,929.74,0.18696057]
[1768391038252,0.77438765,930.63,929.74,0.18696057]
[1768391038453,0.77438765,930.62,929.74,0.18696057]
[1768391038653,0.77438765,930.61,929.74,0.18696057]
[1768391038855,0.77438765,930.6,929.74,0.18696057]
[1768391039055,1.465,931.0,929.74,0.18696057]
[1768391039056,0.77438765,930.59,929.74,0.18696057]
[1768391039256,0.77438765,930.58,929.74,0.18696057]
[1768391039458,0.77438765,930.57,929.74,0.18696057]
[1768391039659,0.77438765,930.56,929.74,0.18696057]
[1768391039856,0.77438765,930.55,929.74,0.18696057]
[1768391040056,0.77438765,930.54,929.74,0.18696057]
[1768391040260,0.77438765,930.53,929.74,0.18696057]
[1768391040559,0.77438765,930.52,929.74,0.18696057]
[1768391040759,0.77438765,930.51,929.74,0.18696057]
[1768391040955,0.77438765,930.5,929.74,0.18696057]
[1768391041160,0.77438765,930.49,929.74,0.18696057]
[1768391041361,0.77438765,930.48,929.74,0.18696057]
[1768391041657,0.77438765,930.47,929.74,0.18696057]
[1768391041857,0.77438765,930.46,929.74,0.18696057]
[1768391042060,0.77438765,930.45,929.74,0.18696057]
[1768391042260,0.77438765,930.44,929.74,0.18696057]
[1768391042460,0.77438765,930.43,929.74,0.18696057]
[1768391042660,0.77438765,930.42,929.74,0.18696057]
[1768391042860,1.465,931.0,929.74,0.18696057]
[1768391042861,0.77438765,930.41,929.74,0.18696057]
[1768391043056,1.465,931.0,929.74,0.18696057]
[1768391043263,0.77468954,930.99,929.74,0.18696057]
[1768391043463,0.77468954,930.98,929.74,0.18696057]
[1768391043759,0.77468954,930.97,929.74,0.18696057]
[1768391043962,0.77468954,930.96,929.74,0.18696057]
[1768391044163,0.77468954,930.95,929.74,0.18696057]
[1768391044359,0.77468954,930.94,929.74,0.18696057]
[1768391044560,0.77468954,930.93,929.74,0.18696057]
[1768391044863,0.77468954,930.92,929.74,0.18696057]
[1768391045159,0.77468954,930.91,929.74,0.18696057]
[1768391045364,0.77468954,930.9,929.74,0.18696057]
[1768391045563,0.77468954,930.89,929.74,0.18696057]
[1768391045859,0.77468954,930.88,929.74,0.18696057]
[1768391046063,0.77468954,930.87,929.74,0.18696057]
[1768391046261,0.77468954,930.86,929.74,0.18696057]
[1768391046462,0.77468954,930.85,929.74,0.18696057]
[1768391046662,0.77468954,930.84,929.74,0.18696057]
[1768391046863,0.77468954,930.83,929.74,0.18696057]
[1768391047062,0.77468954,930.82,929.74,0.18696057]
[1768391047266,0.77468954,930.81,929.74,0.18696057]
[1768391047467,0.77468954,930.8,929.74,0.18696057]
[1768391047764,0.77468954,930.79,929.74,0.18696057]
[1768391047961,0.77468954,930.78,929.74,0.18696057]
[1768391048166,0.77468954,930.77,929.74,0.18696057]
[1768391048363,0.77468954,930.76,929.74,0.18696057]
[1768391048564,0.77468954,930.75,929.74,0.18696057]
[1768391048764,0.77468954,930.74,929.74,0.18696057]
[1768391048962,0.77468954,930.73,929.74,0.18696057]
[1768391049166,0.77468954,930.72,929.74,0.18696057]
[1768391049466,0.77468954,930.71,929.74,0.18696057]
[1768391049663,0.77468954,930.7,929.74,0.18696057]
[1768391049867,0.77468954,930.69,929.74,0.18696057]
[1768391050067,0.77468954,930.68,929.74,0.18696057]
[1768391050264,0.77468954,930.67,929.74,0.18696057]
[1768391050467,0.77468954,930.66,929.74,0.18696057]
[1768391050668,0.77468954,930.65,929.74,0.18696057]
[1768391050864,0.77468954,930.64,929.74,0.18696057]
[1768391051064,0.77468954,930.63,929.74,0.18696057]
[1768391051267,0.77468954,930.62,929.74,0.18696057]
[1768391051469,0.77468954,930.61,929.74,0.18696057]
[1768391051668,0.77468954,930.6,929.74,0.18696057]
[1768391051868,0.77468954,930.59,929.74,0.18696057]
[1768391052066,0.77468954,930.58,929.74,0.18696057]
[1768391052269,0.77468954,930.57,929.74,0.18696057]
[1768391052465,1.271,930.62,929.74,0.18696057]
[1768391052466,0.77468954,930.56,929.74,0.18696057]
[1768391052667,0.77468954,930.55,929.74,0.18696057]
[1768391052871,0.77468954,930.54,929.74,0.18696057]
[1768391053072,0.77468954,930.53,929.74,0.18696057]
[1768391053267,0.77468954,930.52,929.74,0.18696057]
[1768391053573,0.77468954,930.51,929.74,0.18696057]
[1768391053769,0.77468954,930.5,929.74,0.18696057]
[1768391053969,0.77468954,930.49,929.74,0.18696057]
[1768391054168,0.77468954,930.48,929.74,0.18696057]
[1768391054472,0.77468954,930.47,929.74,0.18696057]
[1768391054767,0.77468954,930.46,929.74,0.18696057]
[1768391054973,0.77468954,930.45,929.74,0.18696057]
[1768391055174,0.77468954,930.44,929.74,0.18696057]
[1768391055470,0.77468954,930.43,929.74,0.18696057]
[1768391055673,0.77468954,930.42,929.74,0.18696057]
[1768391055873,0.77468954,930.41,929.74,0.18696057]
[1768391056174,0.77468954,930.4,929.74,0.18696057]
[1768391056373,0.77468954,930.39,929.74,0.18696057]
[1768391056673,0.77468954,930.38,929.74,0.18696057]
[1768391056873,0.77468954,930.37,929.74,0.18696057]
[1768391057070,0.77468954,930.36,929.74,0.18696057]
[1768391057269,0.77468954,930.35,929.74,0.18696057]
[1768391057469,0.77468954,930.34,929.74,0.18696057]
[1768391057673,0.77468954,930.33,929.74,0.18696057]
[1768391057868,1.271,930.62,929.74,0.18696057]
[1768391058071,0.77399882,930.61,929.74,0.18696057]
[1768391058272,0.77399882,930.6,929.74,0.18696057]
[1768391058470,0.77399882,930.59,929.74,0.18696057]
[1768391058673,0.77399882,930.58,929.74,0.18696057]
[1768391058872,0.77399882,930.57,929.74,0.18696057]
[1768391059172,0.77399882,930.56,929.74,0.18696057]
[1768391059375,0.77399882,930.55,929.74,0.18696057]
[1768391059574,0.77399882,930.54,929.74,0.18696057]
[1768391059772,0.77399882,930.53,929.74,0.18696057]
[1768391060077,0.77399882,930.52,929.74,0.18696057]
[1768391060277,0.77399882,930.51,929.74,0.18696057]
[1768391060577,0.77399882,930.5,929.74,0.18696057]
[1768391060877,0.77399882,930.49,929.74,0.18696057]
[1768391061174,0.77399882,930.48,929.74,0.18696057]
[1768391061378,0.77399882,930.47,929.74,0.18696057]
[1768391061675,0.77399882,930.46,929.74,0.18696057]
[1768391061878,0.77399882,930.45,929.74,0.18696057]
[1768391062074,0.77399882,930.44,929.74,0.18696057]
[1768391062274,0.77399882,930.43,929.74,0.18696057]
[1768391062478,0.77399882,930.42,929.74,0.18696057]
[1768391062774,0.77399882,930.41,929.74,0.18696057]
[1768391062974,0.77399882,930.4,929.74,0.18696057]
[1768391063175,0.77399882,930.39,929.74,0.18696057]
[1768391063375,0.77399882,930.38,929.74,0.18696057]
[1768391063580,0.77399882,930.37,929.74,0.18696057]
[1768391063779,0.77399882,930.36,929.74,0.18696057]
[1768391063976,0.77399882,930.35,929.74,0.18696057]
[1768391064279,1.271,930.62,929.74,0.18696057]
[1768391064475,0.77369607,930.61,929.74,0.18696057]
[1768391064675,0.77369613,930.6,929.74,0.18696057]
[1768391064875,0.77369613,930.59,929.74,0.18696057]
[1768391065079,0.77369613,930.58,929.74,0.18696057]
[1768391065279,0.77369613,930.57,929.74,0.18696057]
[1768391065575,0.77369613,930.56,929.74,0.18696057]
[1768391065879,0.77369613,930.55,929.74,0.18696057]
[1768391066075,0.77369613,930.54,929.74,0.18696057]
[1768391066379,0.77369613,930.53,929.74,0.18696057]
[1768391066577,0.77369613,930.52,929.74,0.18696057]
[1768391066780,0.77369613,930.51,929.74,0.18696057]
[1768391066978,0.77369613,930.5,929.74,0.18696057]
[1768391067181,0.77369613,930.49,929.74,0.18696057]
[1768391067481,0.77369613,930.48,929.74,0.18696057]
[1768391067676,0.77369613,930.47,929.74,0.18696057]
[1768391067977,0.77369613,930.46,929.74,0.18696057]
[1768391068177,0.77369613,930.45,929.74,0.18696057]
[1768391068380,0.77369613,930.44,929.74,0.18696057]
[1768391068576,0.77369613,930.43,929.74,0.18696057]
[1768391068781,0.77369613,930.42,929.74,0.18696057]
[1768391069077,0.77369613,930.41,929.74,0.18696057]
[1768391069279,0.77369613,930.4,929.74,0.18696057]
[1768391069483,1.271,930.62,929.74,0.18696057]
[1768391069782,0.77372034,930.61,929.74,0.18696057]
[1768391069984,0.77372034,930.6,929.74,0.18696057]
[1768391070180,0.77372034,930.59,929.74,0.18696057]
[1768391070380,0.77372034,930.58,929.74,0.18696057]
[1768391070683,0.77372034,930.57,929.74,0.18696057]
[1768391070882,0.77372034,930.56,929.74,0.18696057]
[1768391071078,0.77372034,930.55,929.74,0.18696057]
[1768391071282,0.77372034,930.54,929.74,0.18696057]
[1768391071482,0.77372034,930.53,929.74,0.18696057]
[1768391071678,0.77372034,930.52,929.74,0.18696057]
[1768391071879,0.77372034,930.51,929.74,0.18696057]
[1768391072079,0.77372034,930.5,929.74,0.18696057]
[1768391072282,0.77372034,930.49,929.74,0.18696057]
[1768391072481,0.77372034,930.48,929.74,0.18696057]
[1768391072684,0.77372034,930.47,929.74,0.18696057]
[1768391072886,0.77372034,930.46,929.74,0.18696057]
[1768391073182,0.77372034,930.45,929.74,0.18696057]
[1768391073389,0.77372034,930.44,929.74,0.18696057]
[1768391073681,0.77372034,930.43,929.74,0.18696057]
[1768391073884,0.77372034,930.42,929.74,0.18696057]
[1768391074085,0.77372034,930.41,929.74,0.18696057]
[1768391074285,1.271,930.62,929.74,0.18696057]
[1768391074483,0.77379536,930.61,929.74,0.18696057]
[1768391074685,0.77379536,930.6,929.74,0.18696057]
[1768391074883,0.77379536,930.59,929.74,0.18696057]
[1768391075086,0.77379536,930.58,929.74,0.18696057]
[1768391075283,0.77379536,930.57,929.74,0.18696057]
[1768391075587,0.77379536,930.56,929.74,0.18696057]
[1768391075786,0.77379536,930.55,929.74,0.18696057]
[1768391075986,0.77379536,930.54,929.74,0.18696057]
[1768391076186,0.77379536,930.53,929.74,0.18696057]
[1768391076382,0.77379536,930.52,929.74,0.18696057]
[1768391076586,0.77379536,930.51,929.74,0.18696057]
[1768391076786,0.77379536,930.5,929.74,0.18696057]
[1768391076986,0.77379536,930.49,929.74,0.18696057]
[1768391077187,0.77379536,930.48,929.74,0.18696057]
[1768391077388,0.77332,930.47,929.74,0.18696057]
[1768391077583,0.77332,930.46,929.74,0.18696057]
[1768391077788,0.77332,930.45,929.74,0.18696057]
[1768391077985,0.77332,930.44,929.74,0.18696057]
[1768391078186,0.77332,930.43,929.74,0.18696057]
[1768391078485,0.77332,930.42,929.74,0.18696057]
[1768391078685,0.77332,930.41,929.74,0.18696057]
[1768391078887,1.271,930.62,929.74,0.18696057]
[1768391079086,0.77333509,930.61,929.74,0.18696057]
[1768391079290,0.77333509,930.6,929.74,0.18696057]
[1768391079488,0.77333509,930.59,929.74,0.18696057]
[1768391079684,0.77333509,930.58,929.74,0.18696057]
[1768391079889,0.77333509,930.57,929.74,0.18696057]
[1768391080087,0.77333509,930.56,929.74,0.18696057]
[1768391080286,0.77333509,930.55,929.74,0.18696057]
[1768391080492,0.77333509,930.54,929.74,0.18696057]
[1768391080687,0.77333509,930.53,929.74,0.18696057]
[1768391080890,0.77333509,930.52,929.74,0.18696057]
[1768391081187,0.77333509,930.51,929.74,0.18696057]
[1768391081389,0.77333509,930.5,929.74,0.18696057]
[1768391081588,0.77333509,930.49,929.74,0.18696057]
[1768391081787,0.77333509,930.48,929.74,0.18696057]
[1768391081989,0.77333509,930.47,929.74,0.18696057]
[1768391082190,0.77333509,930.46,929.74,0.18696057]
[1768391082490,0.77333509,930.45,929.74,0.18696057]
[1768391082787,0.77333509,930.44,929.74,0.18696057]
[1768391082984,0.77333509,930.43,929.74,0.18696057]
[1768391083188,0.77333509,930.42,929.74,0.18696057]
[1768391083385,0.77333509,930.41,929.74,0.18696057]
[1768391083591,1.271,930.62,929.74,0.18696057]
[1768391083790,0.77342136,930.61,929.74,0.18696057]
[1768391084091,0.77342136,930.6,929.74,0.18696057]
[1768391084387,0.77342136,930.59,929.74,0.18696057]
[1768391084590,0.77342136,930.58,929.74,0.18696057]
[1768391084886,0.77342136,930.57,929.74,0.18696057]
[1768391085087,0.77342136,930.56,929.74,0.18696057]
[1768391085288,0.77342136,930.55,929.74,0.18696057]
[1768391085486,0.77342136,930.54,929.74,0.18696057]
[1768391085685,0.77342136,930.53,929.74,0.18696057]
[1768391085889,0.77342136,930.52,929.74,0.18696057]
[1768391086188,1.271,930.62,929.74,0.18696057]
[1768391086189,0.77342136,930.51,929.74,0.18696057]
[1768391086692,0.77342136,930.5,929.74,0.18696057]
[1768391086991,0.77342136,930.49,929.74,0.18696057]
[1768391087191,0.77342136,930.48,929.74,0.18696057]
[1768391087393,0.77342136,930.47,929.74,0.18696057]
[1768391087592,0.77342136,930.46,929.74,0.18696057]
[1768391087788,1.271,930.62,929.74,0.18696057]
[1768391087993,0.77346055,930.61,929.74,0.18696057]
[1768391088292,0.77346055,930.6,929.74,0.18696057]
[1768391088491,0.77346055,930.59,929.74,0.18696057]
[1768391088688,0.77346055,930.58,929.74,0.18696057]
[1768391088993,0.77346055,930.57,929.74,0.18696057]
[1768391089192,0.77346055,930.56,929.74,0.18696057]
[1768391089390,0.77346055,930.55,929.74,0.18696057]
[1768391089589,0.77346055,930.54,929.74,0.18696057]
[1768391089788,0.77346055,930.53,929.74,0.18696057]
[1768391089994,0.77346055,930.52,929.74,0.18696057]
[1768391090193,1.271,930.62,929.74,0.18696057]
[1768391090194,0.77346055,930.51,929.74,0.18696057]
[1768391090389,0.77346055,930.5,929.74,0.18696057]
[1768391090590,0.77346055,930.49,929.74,0.18696057]
[1768391090790,0.77346055,930.48,929.74,0.18696057]
[1768391090994,0.77346055,930.47,929.74,0.18696057]
[1768391091192,1.271,930.62,929.74,0.18696057]
[1768391091387,0.77339298,930.61,929.74,0.18696057]
[1768391091594,0.77339298,930.6,929.74,0.18696057]
[1768391091793,1.271,930.62,929.74,0.18696057]
[1768391094397,0.0098735,931.57,929.74,0.18696057]
[1768391094603,0.7725976,931.56,929.74,0.18696057]
[1768391094901,0.7725976,931.55,929.74,0.18696057]
[1768391095099,0.7725976,931.54,929.74,0.18696057]
[1768391095303,0.7725976,931.53,929.74,0.18696057]
[1768391095499,0.7725976,931.52,929.74,0.18696057]
[1768391095801,0.7725976,931.51,929.74,0.18696057]
[1768391096000,0.7725976,931.5,929.74,0.18696057]
[1768391096298,0.7725976,931.49,929.74,0.18696057]
[1768391096702,0.18696911,931.58,929.74,0.18696057]
[1768391096899,0.77237058,931.57,929.74,0.18696057]
[1768391097197,1.207,931.48,929.74,0.18696057]
[1768391098903,0.77233295,931.47,929.74,0.18696057]
[1768391099103,0.77233295,931.46,929.74,0.18696057]
[1768391099301,0.77233295,931.45,929.74,0.18696057]
[1768391099503,0.77233295,931.44,929.74,0.18696057]
[1768391099707,0.77233295,931.43,929.74,0.18696057]
[1768391099906,0.77233295,931.42,929.74,0.18696057]
[1768391100104,0.77233295,931.41,929.74,0.18696057]
[1768391100304,0.77233295,931.4,929.74,0.18696057]
[1768391100508,0.77233295,931.39,929.74,0.18696057]
[1768391100708,0.77233295,931.38,929.74,0.18696057]
[1768391100909,0.77233295,931.37,929.74,0.18696057]
[1768391101109,0.77233295,931.36,929.74,0.18696057]
[1768391101309,1.207,931.48,929.74,0.18696057]
[1768391101310,0.77233295,931.35,929.74,0.18696057]
[1768391101608,0.77233295,931.34,929.74,0.18696057]
[1768391101810,0.77233295,931.33,929.74,0.18696057]
[1768391102103,0.77233295,931.32,929.74,0.18696057]
[1768391102310,0.77233295,931.31,929.74,0.18696057]
[1768391102510,0.77233295,931.3,929.74,0.18696057]
[1768391102809,0.77233295,931.29,929.74,0.18696057]